bitfinex/quotes_SOLUSD_20240717
["timestamp","ask_amount","ask_price","bid_price","bid_amount"]
[1721247320243,6.3586,157.27,157.23,6.36]
[1721247320742,45.7326471,157.29,157.18,31.5346]
[1721247320743,15.8955,157.28,157.18,31.5346]
[1721247320949,45.0,157.26,157.18,31.5346]
[1721247321431,45.0,157.27,157.18,31.5346]
[1721247322350,6.3599,157.24,157.2,6.3611]
[1721247328960,45.0,157.23,157.17,15.653]
[1721247329247,6.3611,157.21,157.16,12.4056]
[1721247330551,6.3611,157.21,157.17,6.3624]
[1721247333459,6.3613,157.2,157.16,12.4058]
[1721247335561,6.3617,157.19,157.16,6.043]
[1721247337159,6.3614,157.2,157.16,12.4059]
[1721247338164,6.361,157.21,157.17,6.3625]
[1721247339063,6.3613,157.2,157.16,12.4058]
[1721247339278,6.3613,157.2,157.16,13.67818114]
[1721247339647,6.361,157.21,157.17,6.3624]
[1721247339846,22.54870401,157.27,157.18,1.27233383]
[1721247340063,6.3593,157.25,157.21,6.3606]
[1721247340374,6.3593,157.25,157.22,1.27191487]
[1721247341267,6.3598,157.24,157.22,1.27191487]
[1721247342154,15.8957,157.28,157.21,6.2282]
[1721247342343,45.0,157.27,157.21,6.2282]
[1721247343472,6.3605,157.22,157.21,6.2282]
[1721247344156,15.8995,157.24,157.17,6.4891]
[1721247344577,6.3621,157.18,157.17,6.4891]
[1721247344777,6.3627,157.17,157.15,16.6663]
[1721247345080,15.9017,157.22,157.15,16.6663]
[1721247345081,6.3629,157.16,157.15,16.6663]
[1721247345754,6.3626,157.17,157.15,16.6663]
[1721247348270,15.9017,157.22,157.15,16.6663]
[1721247348449,6.3619,157.19,157.15,23.0295]
[1721247348658,6.3622,157.18,157.15,16.6663]
[1721247348979,6.3622,157.18,157.16,1.27241244]
[1721247349855,6.3622,157.18,157.15,16.6663]
[1721247350678,6.3625,157.17,157.15,16.6663]
[1721247352075,6.3629,157.16,157.15,16.6663]
[1721247352276,6.3629,157.16,157.13,6.1652]
[1721247354966,6.3626,157.17,157.13,12.5293]
[1721247355982,6.3626,157.17,157.13,28.1593]
[1721247357471,6.363,157.16,157.13,21.7952]
[1721247358080,6.3626,157.17,157.13,28.1592]
[1721247358383,6.3618,157.19,157.15,21.9932]
[1721247358589,15.9005,157.23,157.16,32.76713867]
[1721247359263,6.362,157.19,157.16,32.76713867]
[1721247359673,6.3623,157.18,157.16,15.8649]
[1721247359977,6.3625,157.17,157.16,15.8649]
[1721247360484,15.9028,157.21,157.16,15.8649]
[1721247360485,6.362,157.19,157.16,15.8649]
[1721247360686,6.3625,157.17,157.16,15.8649]
[1721247361886,6.3622,157.18,157.16,15.8649]
[1721247364366,6.3618,157.19,157.16,15.8649]
[1721247365375,6.3618,157.19,157.16,17.13726341]
[1721247365580,6.3614,157.2,157.16,17.13726341]
[1721247365888,6.3614,157.2,157.16,22.2277]
[1721247367298,6.3614,157.2,157.17,16.74044663]
[1721247367473,6.3614,157.2,157.18,1.27221692]
[1721247368795,15.8997,157.24,157.19,1.2722131]
[1721247369290,15.8997,157.24,157.18,22.0295]
[1721247369490,6.3617,157.19,157.18,6.3995]
[1721247371213,6.3614,157.2,157.18,6.3995]
[1721247371493,6.3614,157.2,157.18,7.67169795]
[1721247371877,6.3614,157.2,157.18,6.3995]
[1721247372181,6.3617,157.19,157.18,6.3995]
[1721247376285,6.3617,157.19,157.16,15.8649]
[1721247376490,6.3614,157.2,157.16,22.2277]
[1721247378501,6.361,157.21,157.17,6.3625]
[1721247378731,6.3606,157.22,157.18,7.6342187]
[1721247379011,6.36,157.24,157.19,37.626]
[1721247379218,6.3601,157.23,157.2,7.63316639]
[1721247379385,6.3601,157.23,157.21,1.27200072]
[1721247381015,6.3601,157.23,157.22,1.27195518]
[1721247381183,6.3605,157.22,157.2,1.27195538]
[1721247381480,6.3605,157.22,157.21,1.27196861]
[1721247382276,6.3605,157.22,157.19,21.7221]
[1721247382495,6.3609,157.21,157.19,21.7221]
[1721247383189,6.3606,157.22,157.19,21.7221]
[1721247387177,6.3609,157.21,157.19,6.0921]
[1721247388086,6.3613,157.2,157.19,6.0921]
[1721247388296,15.8986,157.25,157.19,6.0921]
[1721247388297,6.361,157.21,157.19,6.0921]
[1721247390990,6.361,157.21,157.17,6.3625]
[1721247393191,6.361,157.21,157.17,21.9925]
[1721247398112,6.3613,157.2,157.17,15.63]
[1721247400322,6.361,157.21,157.18,16.90217175]
[1721247400485,6.3603,157.23,157.2,15.63]
[1721247400690,6.3597,157.24,157.21,16.90193865]
[1721247401190,259.2,157.27,157.22,15.63]
[1721247401392,259.2,157.27,157.23,1.27179932]
[1721247402113,6.3597,157.24,157.23,1.27179932]
[1721247402317,6.3597,157.24,157.21,15.63]
[1721247402318,6.3597,157.24,157.22,1.27179932]
[1721247403292,6.3601,157.23,157.22,1.27179932]
[1721247403499,6.3601,157.23,157.21,15.63]
[1721247404820,259.2,157.27,157.21,23.17969499]
[1721247405001,259.2,157.27,157.24,15.63]
[1721247405191,259.2,157.27,157.25,1.27157145]
[1721247405388,7.0905471,157.29,157.26,15.63]
[1721247405721,7.0905471,157.29,157.27,1.2714448]
[1721247406104,0.7326471,157.29,157.27,16.9014448]
[1721247406827,0.7326471,157.29,157.28,15.63]
[1721247408705,0.7326471,157.29,157.28,1.27136145]
[1721247408926,0.7326471,157.29,157.26,59.7935]
[1721247409534,0.7326471,157.29,157.27,0.61928784]
[1721247409721,0.7326471,157.29,157.28,1.27132817]
[1721247410039,0.7326471,157.29,157.28,16.90132817]
[1721247410662,0.7326471,157.29,157.27,21.9884]
[1721247412739,0.7326471,157.29,157.28,1.27129787]
[1721247413046,0.7326471,157.29,157.28,23.25929787]
[1721247413856,0.7326471,157.29,157.28,103.01929787]
[1721247414211,15.8833,157.4,157.28,103.01929787]
[1721247414212,47.6409,157.43,157.3,19.13]
[1721247414417,47.6409,157.43,157.33,37.876]
[1721247414418,6.3543,157.38,157.33,37.876]
[1721247414844,6.3545,157.37,157.33,37.876]
[1721247416215,6.3549,157.36,157.33,15.8901]
[1721247416643,6.3549,157.36,157.32,21.9862]
[1721247416868,6.3559,157.34,157.3,15.8926]
[1721247417149,6.3561,157.33,157.3,15.8926]
[1721247417318,6.3561,157.33,157.29,37.0248]
[1721247417845,6.3557,157.34,157.29,37.0248]
[1721247418346,6.3557,157.34,157.3,6.3572]
[1721247418525,6.3553,157.35,157.3,23.25830022]
[1721247418843,6.3553,157.35,157.31,6.3568]
[1721247419045,6.3553,157.35,157.3,23.25820022]
[1721247419341,6.3557,157.34,157.3,21.9871]
[1721247419548,6.3557,157.34,157.3,6.3571]
[1721247419718,6.3557,157.34,157.3,21.9871]
[1721247420255,6.3561,157.33,157.29,52.9186]
[1721247420832,15.8885,157.35,157.28,6.0349]
[1721247421151,6.3569,157.31,157.28,6.0349]
[1721247421441,6.3565,157.32,157.28,12.3928]
[1721247422146,6.3565,157.32,157.29,1.27128633]
[1721247422315,16.3218,157.38,157.3,1.27128569]
[1721247422316,6.356,157.33,157.3,1.27128569]
[1721247422515,6.3557,157.34,157.3,23.25838569]
[1721247422735,6.3549,157.36,157.31,21.9868]
[1721247422930,38.38800983,157.43,157.33,6.356]
[1721247422931,6.3544,157.37,157.33,6.356]
[1721247423147,6.3541,157.38,157.34,1.27089453]
[1721247423444,21.0676455,157.44,157.35,6.3551]
[1721247423748,6.3539,157.39,157.35,6.3551]
[1721247423953,6.3539,157.39,157.34,37.8742]
[1721247425138,6.3539,157.39,157.34,44.4497]
[1721247425346,6.354,157.38,157.34,44.4497]
[1721247425591,6.354,157.38,157.34,22.4642]
[1721247425761,6.3545,157.37,157.34,22.4642]
[1721247425923,6.3541,157.38,157.34,38.0942]
[1721247426329,6.3541,157.38,157.34,44.4498]
[1721247427157,0.8167455,157.44,157.35,1.27071952]
[1721247427458,6.3533,157.4,157.36,23.255106]
[1721247428429,6.3536,157.39,157.36,16.900606]
[1721247428633,6.3536,157.39,157.36,1.270606]
[1721247428824,6.3536,157.39,157.35,21.9851]
[1721247429654,6.3536,157.39,157.36,15.63]
[1721247430746,6.354,157.38,157.35,15.63]
[1721247430941,6.3533,157.4,157.35,21.9851]
[1721247431140,6.3533,157.4,157.36,15.63]
[1721247431334,6.3533,157.4,157.37,1.27056935]
[1721247431738,6.3528,157.42,157.37,16.90056935]
[1721247431950,0.8167455,157.44,157.37,39.66696935]
[1721247432152,0.8167455,157.44,157.37,38.3964]
[1721247432466,6.3531,157.41,157.37,32.0421]
[1721247432839,6.3533,157.4,157.37,32.0421]
[1721247433072,6.3529,157.41,157.37,32.0421]
[1721247433969,6.3529,157.41,157.37,38.3965]
[1721247434640,6.3533,157.4,157.37,32.0421]
[1721247434835,6.3533,157.4,157.37,16.4121]
[1721247435158,15.8815,157.42,157.34,22.2055]
[1721247435333,6.3546,157.37,157.34,22.2055]
[1721247435531,6.3541,157.38,157.34,22.2055]
[1721247435832,6.3541,157.38,157.34,28.561]
[1721247436372,15.8815,157.42,157.34,22.2055]
[1721247436373,6.3545,157.37,157.34,22.2055]
[1721247436845,15.8815,157.42,157.34,28.5609]
[1721247436846,6.3541,157.38,157.34,28.5609]
[1721247437453,6.3537,157.39,157.35,6.3552]
[1721247437772,6.3537,157.39,157.35,21.9852]
[1721247438857,0.8167455,157.44,157.36,6.3546]
[1721247439034,45.8167455,157.44,157.36,6.3546]
[1721247439669,45.8167455,157.44,157.36,21.9846]
[1721247439829,6.3529,157.41,157.36,21.9846]
[1721247440344,6.3529,157.41,157.37,7.62491552]
[1721247440752,6.3529,157.41,157.37,6.3544]
[1721247441060,6.3533,157.4,157.36,21.9847]
[1721247441636,6.3533,157.4,157.36,6.3547]
[1721247442159,15.8804,157.43,157.35,15.8877]
[1721247442345,45.0,157.42,157.35,15.8877]
[1721247442541,6.3537,157.39,157.35,15.8877]
[1721247442933,6.3537,157.39,157.35,31.5177]
[1721247443634,6.3537,157.39,157.35,37.8728]
[1721247443834,6.3537,157.39,157.35,22.2428]
[1721247444345,15.8827,157.41,157.34,6.5755]
[1721247444976,6.3543,157.38,157.34,12.9311]
[1721247445175,6.3537,157.39,157.34,12.9311]
[1721247445781,6.3537,157.39,157.34,28.5611]
[1721247445959,6.3537,157.39,157.35,1.27072769]
[1721247446159,6.3537,157.39,157.36,1.27072628]
[1721247446678,6.3542,157.38,157.36,1.27072628]
[1721247446879,6.3542,157.38,157.34,28.5611]
[1721247447178,6.3536,157.39,157.35,6.3551]
[1721247454474,6.3533,157.4,157.36,6.3548]
[1721247455487,6.3529,157.41,157.37,6.3543]
[1721247456510,6.3533,157.4,157.36,22.2417]
[1721247456680,6.3536,157.39,157.35,6.3551]
[1721247458097,45.0,157.43,157.36,6.3548]
[1721247458098,6.3533,157.4,157.36,6.3548]
[1721247458310,6.3536,157.39,157.35,6.3551]
[1721247459205,6.3532,157.4,157.36,6.3547]
[1721247459503,6.3529,157.41,157.37,6.3544]
[1721247463402,6.3524,157.42,157.38,6.3538]
[1721247463974,6.3521,157.43,157.39,6.3536]
[1721247464175,7.1684455,157.44,157.39,1.27050004]
[1721247464585,7.1684455,157.44,157.4,6.3532]
[1721247464799,7.1684455,157.44,157.41,1.27031382]
[1721247465507,7.1684455,157.44,157.4,6.3532]
[1721247465694,7.1684455,157.44,157.39,43.9422]
[1721247466101,7.1684455,157.44,157.39,28.3119]
[1721247466391,7.1684455,157.44,157.39,43.9419]
[1721247467284,6.352,157.43,157.39,43.9419]
[1721247467685,0.8167455,157.44,157.39,6.075]
[1721247467886,0.8167455,157.44,157.42,15.63]
[1721247468189,0.8167455,157.44,157.4,15.63]
[1721247468591,0.8167455,157.44,157.41,1.27020025]
[1721247469018,0.8167455,157.44,157.4,21.9829]
[1721247469194,6.3529,157.41,157.39,6.075]
[1721247469716,6.3524,157.42,157.38,15.1227]
[1721247470011,6.3529,157.41,157.35,28.0598]
[1721247471509,6.3538,157.39,157.35,6.075]
[1721247472203,6.3533,157.4,157.35,6.075]
[1721247472399,6.3541,157.38,157.35,6.075]
[1721247473509,6.3537,157.39,157.35,6.075]
[1721247474385,6.3541,157.38,157.34,37.3665]
[1721247475395,6.3541,157.38,157.34,22.2438]
[1721247477322,16.6964455,157.44,157.35,7.62595144]
[1721247477623,6.3532,157.4,157.36,7.62546948]
[1721247478203,6.3532,157.4,157.35,6.3551]
[1721247478503,6.3538,157.39,157.34,22.2437]
[1721247483321,6.3541,157.38,157.34,22.2437]
[1721247483610,6.3545,157.37,157.31,37.5968]
[1721247483818,6.3545,157.37,157.32,6.3561]
[1721247483991,6.3541,157.38,157.33,6.356]
[1721247484389,6.3541,157.38,157.34,6.3555]
[1721247484618,6.3537,157.39,157.34,6.3555]
[1721247485324,6.3541,157.38,157.34,6.3555]
[1721247486115,6.3541,157.38,157.33,22.2456]
[1721247488516,6.3545,157.37,157.33,22.2456]
[1721247491798,15.8836,157.4,157.31,6.075]
[1721247492014,45.0,157.39,157.31,6.075]
[1721247492540,6.3563,157.33,157.31,6.075]
[1721247493315,6.3564,157.32,157.27,22.1958]
[1721247493632,6.3564,157.32,157.28,6.3579]
[1721247494732,6.3568,157.31,157.27,28.5541]
[1721247495031,15.89,157.34,157.27,6.3001]
[1721247495210,6.358,157.29,157.26,16.1774]
[1721247496410,6.3582,157.28,157.26,16.1774]
[1721247496639,6.3578,157.29,157.26,16.1774]
[1721247497743,6.3578,157.29,157.24,22.2585]
[1721247498208,6.3578,157.29,157.25,6.3592]
[1721247499921,6.3574,157.3,157.25,6.3592]
[1721247502332,6.3577,157.29,157.25,6.3592]
[1721247506434,6.358,157.28,157.24,22.2585]
[1721247506832,6.3585,157.27,157.24,15.899]
[1721247507014,6.3585,157.27,157.23,6.3001]
[1721247507332,6.359,157.26,157.23,6.3001]
[1721247509335,6.3593,157.25,157.23,6.3001]
[1721247510033,6.359,157.26,157.23,6.3001]
[1721247510413,6.3594,157.25,157.23,6.3001]
[1721247512842,6.359,157.26,157.23,6.3001]
[1721247517623,6.3586,157.27,157.23,6.3001]
[1721247518041,6.3586,157.27,157.23,12.6601]
[1721247519748,6.3586,157.27,157.23,6.3001]
[1721247519921,6.3586,157.27,157.23,12.6601]
[1721247520121,6.3581,157.28,157.24,1.27163208]
[1721247520333,6.3581,157.28,157.24,16.90163208]
[1721247520542,15.8934,157.3,157.24,16.90163208]
[1721247520543,6.3584,157.27,157.24,16.90163208]
[1721247521140,6.3584,157.27,157.23,12.6599]
[1721247521450,6.3584,157.27,157.23,28.2899]
[1721247521837,6.3584,157.27,157.24,1.27161715]
[1721247523528,15.8934,157.3,157.24,1.27161715]
[1721247523734,6.3589,157.26,157.24,1.27161715]
[1721247524244,15.8934,157.3,157.24,16.90161715]
[1721247525049,6.3585,157.27,157.23,28.5601]
[1721247525232,6.3585,157.27,157.23,44.1901]
[1721247526734,15.8934,157.3,157.23,6.3001]
[1721247526944,6.3594,157.25,157.24,1.27158687]
[1721247527137,6.3597,157.24,157.23,6.3001]
[1721247527541,6.3594,157.25,157.23,6.3001]
[1721247527745,6.3594,157.25,157.24,1.27177127]
[1721247527957,6.3594,157.25,157.23,6.3001]
[1721247528470,6.3594,157.25,157.24,1.27176822]
[1721247528639,6.359,157.26,157.23,6.3001]
[1721247529154,6.3593,157.25,157.23,6.3001]
[1721247530560,6.359,157.26,157.23,6.3001]
[1721247532562,6.359,157.26,157.24,1.27174516]
[1721247532771,6.359,157.26,157.23,6.3001]
[1721247533937,6.3584,157.28,157.24,7.63133732]
[1721247534145,6.3585,157.27,157.24,1.27173732]
[1721247535533,6.3585,157.27,157.23,12.6601]
[1721247536253,6.3589,157.26,157.23,12.6601]
[1721247537564,6.3589,157.26,157.23,6.3001]
[1721247539859,6.3589,157.26,157.23,7.57180586]
[1721247540067,6.3589,157.26,157.23,6.3001]
[1721247540267,6.3586,157.27,157.23,12.6601]
[1721247540571,6.3586,157.27,157.24,1.27166403]
[1721247540943,6.3586,157.27,157.23,12.6601]
[1721247541170,6.3589,157.26,157.23,6.3001]
[1721247543949,6.3589,157.26,157.24,1.27171649]
[1721247545042,15.8906,157.33,157.26,15.3784]
[1721247545247,15.8878,157.36,157.27,1.27134679]
[1721247545485,6.3572,157.3,157.26,15.3784]
[1721247545648,6.3572,157.3,157.27,1.27140218]
[1721247550476,6.3572,157.3,157.26,21.7372]
[1721247552278,6.3572,157.3,157.27,1.27140277]
[1721247554667,6.3572,157.3,157.26,21.7372]
[1721247559109,15.8894,157.34,157.23,25.4001]
[1721247559110,6.3581,157.28,157.23,6.3001]
[1721247559309,6.3584,157.27,157.23,12.6599]
[1721247561710,6.3591,157.26,157.23,6.3001]
[1721247566217,6.3586,157.27,157.23,6.3001]
[1721247567593,6.359,157.26,157.23,6.3001]
[1721247569325,6.3585,157.27,157.23,6.3001]
[1721247570498,6.3585,157.27,157.23,12.6602]
[1721247574497,6.3585,157.27,157.23,6.3001]
[1721247577222,15.8935,157.3,157.23,6.3001]
[1721247577398,45.0,157.29,157.22,16.5488]
[1721247578098,6.3593,157.25,157.22,16.5488]
[1721247578518,6.359,157.26,157.22,16.5488]
[1721247578912,6.3594,157.25,157.22,16.5488]
[1721247580516,6.3597,157.24,157.22,16.5488]
[1721247581311,6.3594,157.25,157.22,16.5488]
[1721247586233,6.3597,157.24,157.22,16.5488]
[1721247599347,6.3601,157.23,157.22,16.5488]
[1721247599819,15.8973,157.26,157.2,6.0133]
[1721247600025,45.0,157.25,157.2,6.0133]
[1721247600232,6.3609,157.21,157.18,15.2359]
[1721247600439,45.0,157.25,157.16,6.2549]
[1721247600638,15.9015,157.22,157.16,6.2549]
[1721247600848,6.3605,157.22,157.19,16.5244]
[1721247601059,60.8986,157.25,157.2,1.27209991]
[1721247601353,15.8986,157.25,157.21,1.27201606]
[1721247601554,6.3602,157.23,157.21,1.27201606]
[1721247602050,15.8957,157.28,157.21,1.27201606]
[1721247602051,6.3605,157.22,157.21,1.27201606]
[1721247602361,6.3605,157.22,157.19,16.5244]
[1721247602852,6.3605,157.22,157.2,1.27205212]
[1721247603031,6.3605,157.22,157.21,1.27205088]
[1721247603426,6.361,157.21,157.19,16.5244]
[1721247604833,6.361,157.21,157.2,1.27207776]
[1721247605548,6.3613,157.2,157.19,16.5244]
[1721247605933,6.361,157.21,157.19,16.5244]
[1721247607433,6.3613,157.2,157.19,16.5244]
[1721247611049,6.3613,157.2,157.16,28.2477]
[1721247611254,15.8995,157.24,157.16,6.2549]
[1721247611431,6.3625,157.17,157.16,6.2549]
[1721247617054,6.3629,157.16,157.15,15.3833]
[1721247618239,6.3629,157.16,157.12,28.2294]
[1721247620168,6.3629,157.16,157.12,12.5994]
[1721247620337,15.903,157.21,157.13,1.27253096]
[1721247620544,45.0,157.2,157.13,16.90253096]
[1721247620774,6.3628,157.17,157.13,23.26653096]
[1721247621466,6.3629,157.16,157.13,16.90253096]
[1721247622559,6.3629,157.16,157.12,28.5102]
[1721247622762,6.3634,157.15,157.12,37.7758]
[1721247623263,6.3634,157.15,157.12,22.1458]
[1721247624656,6.3634,157.15,157.12,37.7758]
[1721247626675,6.363,157.16,157.12,45.41285727]
[1721247626850,6.363,157.16,157.12,44.1403]
[1721247628541,6.3633,157.15,157.12,37.7758]
[1721247628740,6.3633,157.15,157.12,22.1458]
[1721247630572,6.3633,157.15,157.12,6.2349]
[1721247630765,6.3633,157.15,157.13,1.27263062]
[1721247631778,6.3637,157.14,157.13,1.27263062]
[1721247632780,6.3637,157.14,157.12,6.2349]
[1721247637457,15.9045,157.19,157.12,28.2293]
[1721247637679,6.3631,157.16,157.12,28.2293]
[1721247638952,6.3631,157.16,157.13,1.2725251]
[1721247640357,6.3631,157.16,157.12,28.2293]
[1721247640559,6.3633,157.15,157.12,12.5993]
[1721247642183,6.363,157.16,157.12,12.5993]
[1721247644786,6.363,157.16,157.12,28.2293]
[1721247646358,15.9045,157.19,157.12,6.2349]
[1721247646555,6.364,157.14,157.12,6.2349]
[1721247651775,6.3634,157.15,157.12,6.2349]
[1721247654091,15.9045,157.19,157.13,1.27265905]
[1721247654092,6.3629,157.16,157.13,1.27265905]
[1721247655385,6.3629,157.16,157.12,12.5992]
[1721247657701,6.3629,157.16,157.13,6.3641]
[1721247658100,6.3629,157.16,157.14,1.27252784]
[1721247658413,6.362,157.19,157.15,1.27252707]
[1721247658576,6.3622,157.18,157.14,31.5391]
[1721247658775,6.3622,157.18,157.14,37.9028]
[1721247659073,15.8987,157.25,157.16,37.7962]
[1721247659281,15.8987,157.25,157.17,16.90222874]
[1721247659282,6.361,157.21,157.17,16.90222874]
[1721247659475,6.361,157.21,157.18,1.27215575]
[1721247659787,6.3614,157.2,157.18,1.27215575]
[1721247660180,15.8987,157.25,157.18,1.27215575]
[1721247660181,6.361,157.21,157.18,1.27215575]
[1721247660581,6.3611,157.21,157.18,1.27215575]
[1721247660895,6.3614,157.2,157.16,44.159]
[1721247661199,6.3614,157.2,157.16,59.789]
[1721247661788,6.3614,157.2,157.16,44.159]
[1721247662679,6.3618,157.19,157.16,37.7962]
[1721247662875,15.8987,157.25,157.16,37.7962]
[1721247662876,6.3622,157.18,157.16,21.8893]
[1721247663103,15.903,157.21,157.12,38.4213]
[1721247663401,6.3633,157.15,157.12,22.7913]
[1721247665011,6.3633,157.15,157.12,24.06395202]
[1721247668405,6.3637,157.14,157.12,24.06395202]
[1721247668605,6.3637,157.14,157.12,22.7913]
[1721247669616,6.3637,157.14,157.13,1.27268541]
[1721247669804,6.3637,157.14,157.12,22.7913]
[1721247670110,6.3637,157.14,157.13,1.27268037]
[1721247671323,6.3637,157.14,157.12,22.7913]
[1721247672903,6.3628,157.17,157.13,7.63678981]
[1721247673087,6.3628,157.17,157.13,23.26678981]
[1721247673505,6.3622,157.18,157.14,6.3636]
[1721247673706,6.3622,157.18,157.15,1.27241036]
[1721247674001,6.3625,157.17,157.15,1.27241036]
[1721247676512,6.3629,157.16,157.15,1.27241036]
[1721247676713,6.3629,157.16,157.13,16.90245375]
[1721247677214,6.3626,157.17,157.14,15.63]
[1721247677415,6.3626,157.17,157.15,1.27238727]
[1721247677584,6.3626,157.17,157.15,16.90238727]
[1721247678927,6.3629,157.16,157.15,16.90238727]
[1721247679223,6.3629,157.16,157.14,15.63]
[1721247680020,6.3629,157.16,157.15,1.27240627]
[1721247681419,6.3629,157.16,157.13,15.63]
[1721247681611,6.3629,157.16,157.13,16.90241029]
[1721247682521,6.3629,157.16,157.13,15.63]
[1721247682903,6.3625,157.17,157.14,16.90246434]
[1721247683220,6.3615,157.2,157.16,21.9926]
[1721247683517,6.3615,157.2,157.17,1.27220828]
[1721247683722,6.3615,157.2,157.18,1.27220685]
[1721247684099,6.3617,157.19,157.18,1.27220685]
[1721247684800,6.3617,157.19,157.17,1.27222572]
[1721247685012,6.3617,157.19,157.18,1.27222348]
[1721247685724,6.361,157.21,157.18,7.29322348]
[1721247685926,6.361,157.21,157.18,6.021]
[1721247686614,6.3615,157.2,157.18,6.021]
[1721247686804,6.3617,157.19,157.18,6.021]
[1721247687495,6.3614,157.2,157.18,6.021]
[1721247687919,6.3614,157.2,157.18,21.651]
[1721247688231,15.898,157.26,157.19,15.63]
[1721247688429,15.898,157.26,157.2,16.90193978]
[1721247688721,15.898,157.26,157.21,1.27194271]
[1721247689102,6.3606,157.22,157.21,1.27194271]
[1721247689625,6.3606,157.22,157.2,1.2720164]
[1721247690725,6.36,157.24,157.2,16.90200943]
[1721247690895,6.3601,157.23,157.21,1.27183624]
[1721247691100,6.3601,157.23,157.21,16.90183624]
[1721247691627,6.3601,157.23,157.21,1.27183624]
[1721247696325,15.898,157.26,157.18,37.5559]
[1721247696502,6.3615,157.2,157.18,6.021]
[1721247696704,6.3615,157.2,157.18,21.651]
[1721247697428,6.3609,157.21,157.18,21.651]
[1721247698421,6.3606,157.22,157.18,28.0131]
[1721247698832,6.3606,157.22,157.19,15.63]
[1721247699010,15.8997,157.24,157.18,6.021]
[1721247699405,6.3613,157.2,157.18,6.021]
[1721247700027,6.361,157.21,157.18,6.021]
[1721247701124,6.3606,157.22,157.18,6.021]
[1721247701300,6.3609,157.21,157.18,6.021]
[1721247702921,6.3606,157.22,157.18,6.021]
[1721247704012,6.3606,157.22,157.18,12.383]
[1721247704333,6.3609,157.21,157.18,6.021]
[1721247704832,6.3609,157.21,157.19,1.27219321]
[1721247714129,6.3598,157.24,157.21,1.27194241]
[1721247714345,6.3602,157.23,157.21,1.27194241]
[1721247714925,6.3602,157.23,157.2,1.27197872]
[1721247715125,6.3602,157.23,157.21,1.27197868]
[1721247715553,6.3605,157.22,157.21,1.27197868]
[1721247716151,6.3605,157.22,157.2,1.27200038]
[1721247716342,6.3605,157.22,157.21,1.27200059]
[1721247717353,6.3605,157.22,157.19,15.63]
[1721247718531,6.3605,157.22,157.2,1.2720191]
[1721247718950,6.3605,157.22,157.19,15.63]
[1721247719651,6.3605,157.22,157.2,1.27202728]
[1721247719852,6.3602,157.23,157.21,1.27197676]
[1721247720350,6.3598,157.24,157.21,15.63]
[1721247720652,6.3602,157.23,157.21,15.63]
[1721247721652,6.3602,157.23,157.2,15.63]
[1721247722241,6.3605,157.22,157.2,15.63]
[1721247722444,6.3605,157.22,157.19,15.63]
[1721247724555,6.3609,157.21,157.18,37.5561]
[1721247724753,6.3609,157.21,157.18,6.021]
[1721247724962,6.3609,157.21,157.18,21.651]
[1721247726046,60.8958,157.28,157.2,15.63]
[1721247726358,6.3601,157.23,157.21,1.27190857]
[1721247727360,6.3601,157.23,157.2,15.63]
[1721247727547,6.3606,157.22,157.18,12.3831]
[1721247727857,6.3606,157.22,157.19,16.9020575]
[1721247728563,6.3606,157.22,157.2,15.63]
[1721247728746,6.3602,157.23,157.2,15.63]
[1721247728945,6.3602,157.23,157.21,1.27196134]
[1721247729348,6.3602,157.23,157.2,15.63]
[1721247729859,6.3602,157.23,157.21,1.27196206]
[1721247730265,6.3602,157.23,157.2,15.63]
[1721247730765,6.3605,157.22,157.2,16.90196828]